[Event "Titled Tuesday Blitz April 26 Late 2022"]
[White "Leiva, Gianmarco"]
[Black "Bluebaum, Matthias"]
[WhiteFideId "3804399"]
[BlackFideId "24651516"]
[WhiteElo "2323"]
[BlackElo "2550"]
[Result "0-1"]
[Round "03"]
[TimeControl "180+1"]
[Date "2022.04.26"]
[WhiteClock "0:00:04"]
[BlackClock "0:00:44"]

1. e4 {[%clk 0:03:00]}  c6 {[%clk 0:03:00]} 2. d4 {[%clk 0:03:00]}  d5 {[%clk 0:03:01]} 3. e5 {[%clk 0:03:00]}  Bf5 {[%clk 0:03:01]} 4. Nf3 {[%clk 0:03:01]}  e6 {[%clk 0:03:02]} 5. Be2 {[%clk 0:03:01]}  c5 {[%clk 0:03:02]} 6. c4 {[%clk 0:02:40]}  dxc4 {[%clk 0:02:58]} 7. Bxc4 {[%clk 0:02:40]}  Nc6 {[%clk 0:02:53]} 8. d5 {[%clk 0:02:40]}  exd5 {[%clk 0:02:50]} 9. Qxd5 {[%clk 0:02:10]}  Qxd5 {[%clk 0:02:46]} 10. Bxd5 {[%clk 0:02:11]}  Nb4 {[%clk 0:02:42]} 11. Bb3 {[%clk 0:02:11]}  b5 {[%clk 0:02:32]} 12. Nc3 {[%clk 0:02:03]}  c4 {[%clk 0:02:07]} 13. Bd1 {[%clk 0:02:04]}  a6 {[%clk 0:02:06]} 14. Nd4 {[%clk 0:01:30]}  Bg6 {[%clk 0:01:56]} 15. a3 {[%clk 0:01:20]}  Nd3+ {[%clk 0:01:53]} 16. Ke2 {[%clk 0:01:20]}  O-O-O {[%clk 0:01:43]} 17. Nc6 {[%clk 0:01:17]}  Re8 {[%clk 0:01:42]} 18. f4 {[%clk 0:01:12]}  Bc5 {[%clk 0:01:37]} 19. b4 {[%clk 0:01:04]}  Nxc1+ {[%clk 0:01:26]} 20. Rxc1 {[%clk 0:01:04]}  Bb6 {[%clk 0:01:27]} 21. Bc2 {[%clk 0:00:36]}  Nh6 {[%clk 0:01:00]} 22. Nd5 {[%clk 0:00:31]}  Kb7 {[%clk 0:01:00]} 23. Nce7 {[%clk 0:00:28]}  Bxc2 {[%clk 0:00:48]} 24. Rxc2 {[%clk 0:00:29]}  Bd8 {[%clk 0:00:48]} 25. a4 {[%clk 0:00:04]}  Bxe7 {[%clk 0:00:49]} 26. axb5 {[%clk 0:00:05]}  axb5 {[%clk 0:00:50]} 27. Ra2 {[%clk 0:00:05]}  Nf5 {[%clk 0:00:42]} 28. Rha1 {[%clk 0:00:06]}  Ra8 {[%clk 0:00:42]} 29. Rxa8 {[%clk 0:00:02]}  Rxa8 {[%clk 0:00:43]} 30. Rxa8 {[%clk 0:00:02]}  Kxa8 {[%clk 0:00:44]} 31. g4 {[%clk 0:00:03]}  Nd4+ {[%clk 0:00:44]} 32. Ke3 {[%clk 0:00:02]}  Nc6 {[%clk 0:00:45]} 33. Nc7+ {[%clk 0:00:02]}  Kb7 {[%clk 0:00:46]} 34. Nxb5 {[%clk 0:00:03]}  Bxb4 {[%clk 0:00:46]} 35. f5 {[%clk 0:00:02]}  Kb6 {[%clk 0:00:46]} 36. f6 {[%clk 0:00:01]}  Kxb5 {[%clk 0:00:44]} 37. fxg7 {[%clk 0:00:01]}  Ne7 {[%clk 0:00:45]} 38. Kf4 {[%clk 0:00:01]}  Ng8 {[%clk 0:00:45]} 39. e6 {[%clk 0:00:02]}  fxe6 {[%clk 0:00:45]} 40. Ke5 {[%clk 0:00:02]}  c3 {[%clk 0:00:44]} 41. Kxe6 {[%clk 0:00:03]}  c2 {[%clk 0:00:44]} 42. Kf7 {[%clk 0:00:04]}  Nh6+ {[%clk 0:00:44]} 0-1


[Site "https://www.chess.com"]

[Event "Titled Tuesday Blitz April 26 Late 2022"]
[White "Maghsoodloo, Parham"]
[Black "Manukyan, Artyom"]
[WhiteFideId "12539929"]
[BlackFideId "13305786"]
[WhiteElo "2630"]
[BlackElo "2034"]
[Result "1-0"]
[Round "03"]
[TimeControl "180+1"]
[Date "2022.04.26"]
[WhiteClock "0:02:08"]
[BlackClock "0:00:04"]

1. d4 {[%clk 0:03:00]}  d5 {[%clk 0:03:00]} 2. c4 {[%clk 0:03:00]}  e6 {[%clk 0:03:00]} 3. Nf3 {[%clk 0:03:01]}  Nf6 {[%clk 0:03:00]} 4. g3 {[%clk 0:03:01]}  Be7 {[%clk 0:03:01]} 5. Bg2 {[%clk 0:03:01]}  O-O {[%clk 0:03:02]} 6. O-O {[%clk 0:03:02]}  dxc4 {[%clk 0:03:02]} 7. Qc2 {[%clk 0:03:03]}  a6 {[%clk 0:03:03]} 8. a4 {[%clk 0:03:03]}  Bd7 {[%clk 0:03:03]} 9. Rd1 {[%clk 0:03:03]}  Bc6 {[%clk 0:03:03]} 10. Bg5 {[%clk 0:03:03]}  b5 {[%clk 0:02:58]} 11. Nbd2 {[%clk 0:03:03]}  Nbd7 {[%clk 0:02:46]} 12. b3 {[%clk 0:03:03]}  h6 {[%clk 0:02:35]} 13. Bxf6 {[%clk 0:03:02]}  Nxf6 {[%clk 0:02:33]} 14. bxc4 {[%clk 0:03:02]}  bxa4 {[%clk 0:02:28]} 15. e4 {[%clk 0:03:02]}  a3 {[%clk 0:02:24]} 16. d5 {[%clk 0:02:55]}  exd5 {[%clk 0:02:15]} 17. cxd5 {[%clk 0:02:52]}  Bb5 {[%clk 0:02:09]} 18. Nd4 {[%clk 0:02:47]}  Nd7 {[%clk 0:02:02]} 19. Nc4 {[%clk 0:02:36]}  Bxc4 {[%clk 0:01:42]} 20. Qxc4 {[%clk 0:02:36]}  Ne5 {[%clk 0:01:43]} 21. Qc3 {[%clk 0:02:33]}  a5 {[%clk 0:01:38]} 22. f4 {[%clk 0:02:33]}  Bb4 {[%clk 0:01:37]} 23. Qc1 {[%clk 0:02:32]}  Ng4 {[%clk 0:01:24]} 24. h3 {[%clk 0:02:31]}  Nf6 {[%clk 0:01:20]} 25. e5 {[%clk 0:02:30]}  Nh7 {[%clk 0:00:34]} 26. Nc6 {[%clk 0:02:27]}  Qd7 {[%clk 0:00:29]} 27. Kh2 {[%clk 0:02:22]}  h5 {[%clk 0:00:27]} 28. h4 {[%clk 0:02:22]}  Qf5 {[%clk 0:00:12]} 29. d6 {[%clk 0:02:22]}  Kh8 {[%clk 0:00:09]} 30. d7 {[%clk 0:02:18]}  Rad8 {[%clk 0:00:04]} 31. Nxd8 {[%clk 0:02:14]}  Rxd8 {[%clk 0:00:05]} 32. Qxc7 {[%clk 0:02:14]}  Be7 {[%clk 0:00:05]} 33. Rxa3 {[%clk 0:02:09]}  Nf8 {[%clk 0:00:05]} 34. Rxa5 {[%clk 0:02:09]}  Rxd7 {[%clk 0:00:03]} 35. Rxd7 {[%clk 0:02:09]}  Nxd7 {[%clk 0:00:04]} 36. Bh3 {[%clk 0:02:08]} 1-0


[Site "https://www.chess.com"]

[Event "Titled Tuesday Blitz April 26 Late 2022"]
[White "Mardov, Dimitar"]
[Black "Stanisz, Patryk"]
[WhiteFideId "30919495"]
[BlackFideId "1123106"]
[WhiteElo "2185"]
[BlackElo "1833"]
[Result "1-0"]
[Round "03"]
[TimeControl "180+1"]
[Date "2022.04.26"]
[WhiteClock "0:00:10"]
[BlackClock "0:00:09"]

1. e4 {[%clk 0:03:00]}  c5 {[%clk 0:02:57]} 2. Nf3 {[%clk 0:03:00]}  Nc6 {[%clk 0:02:57]} 3. d4 {[%clk 0:02:58]}  cxd4 {[%clk 0:02:58]} 4. Nxd4 {[%clk 0:02:59]}  Nf6 {[%clk 0:02:59]} 5. Nc3 {[%clk 0:02:54]}  e5 {[%clk 0:02:59]} 6. Ndb5 {[%clk 0:02:54]}  d6 {[%clk 0:02:59]} 7. Bg5 {[%clk 0:02:53]}  a6 {[%clk 0:02:59]} 8. Na3 {[%clk 0:02:53]}  b5 {[%clk 0:02:59]} 9. Nd5 {[%clk 0:02:52]}  Qa5+ {[%clk 0:03:00]} 10. Bd2 {[%clk 0:02:42]}  Qd8 {[%clk 0:03:00]} 11. Nxf6+ {[%clk 0:02:29]}  Qxf6 {[%clk 0:03:00]} 12. c4 {[%clk 0:02:28]}  Be7 {[%clk 0:02:59]} 13. cxb5 {[%clk 0:02:27]}  Nd4 {[%clk 0:03:00]} 14. bxa6 {[%clk 0:02:24]}  O-O {[%clk 0:03:00]} 15. Bc4 {[%clk 0:02:23]}  Qg6 {[%clk 0:02:58]} 16. O-O {[%clk 0:02:14]}  Bh3 {[%clk 0:02:24]} 17. g3 {[%clk 0:02:07]}  Bxf1 {[%clk 0:02:09]} 18. Bxf1 {[%clk 0:02:08]}  Qxe4 {[%clk 0:02:03]} 19. Bg2 {[%clk 0:02:01]}  Qf5 {[%clk 0:01:28]} 20. Bxa8 {[%clk 0:01:24]}  Rxa8 {[%clk 0:01:27]} 21. Be3 {[%clk 0:01:25]}  Nf3+ {[%clk 0:01:16]} 22. Kg2 {[%clk 0:01:22]}  e4 {[%clk 0:01:11]} 23. a7 {[%clk 0:01:05]}  Qg4 {[%clk 0:01:06]} 24. Nc2 {[%clk 0:00:57]}  Nh4+ {[%clk 0:00:39]} 25. Kh1 {[%clk 0:00:55]}  Nf3 {[%clk 0:00:39]} 26. Nd4 {[%clk 0:00:42]}  h5 {[%clk 0:00:29]} 27. Nxf3 {[%clk 0:00:42]}  exf3 {[%clk 0:00:30]} 28. Qd5 {[%clk 0:00:39]}  Qc8 {[%clk 0:00:23]} 29. Rc1 {[%clk 0:00:32]}  Qe8 {[%clk 0:00:16]} 30. Qxf3 {[%clk 0:00:30]}  g6 {[%clk 0:00:16]} 31. Rc7 {[%clk 0:00:27]}  Bf8 {[%clk 0:00:05]} 32. Rxf7 {[%clk 0:00:25]}  Qxf7 {[%clk 0:00:03]} 33. Qxa8 {[%clk 0:00:24]}  d5 {[%clk 0:00:03]} 34. Kg2 {[%clk 0:00:19]}  Kg7 {[%clk 0:00:02]} 35. Qc6 {[%clk 0:00:13]}  Qf5 {[%clk 0:00:02]} 36. a8=Q {[%clk 0:00:09]}  Qe4+ {[%clk 0:00:02]} 37. f3 {[%clk 0:00:05]}  Qxe3 {[%clk 0:00:02]} 38. Qd7+ {[%clk 0:00:03]}  Kh6 {[%clk 0:00:03]} 39. Qxf8+ {[%clk 0:00:03]}  Kg5 {[%clk 0:00:03]} 40. Qf4+ {[%clk 0:00:03]}  Qxf4 {[%clk 0:00:03]} 41. gxf4+ {[%clk 0:00:04]}  Kh6 {[%clk 0:00:03]} 42. Qxd5 {[%clk 0:00:04]}  h4 {[%clk 0:00:04]} 43. Qg5+ {[%clk 0:00:04]}  Kh7 {[%clk 0:00:04]} 44. Qxh4+ {[%clk 0:00:05]}  Kg7 {[%clk 0:00:05]} 45. Qg5 {[%clk 0:00:06]}  Kh7 {[%clk 0:00:06]} 46. Kg3 {[%clk 0:00:06]}  Kh8 {[%clk 0:00:06]} 47. h4 {[%clk 0:00:07]}  Kh7 {[%clk 0:00:07]} 48. b4 {[%clk 0:00:08]}  Kh8 {[%clk 0:00:07]} 49. b5 {[%clk 0:00:09]}  Kh7 {[%clk 0:00:08]} 50. b6 {[%clk 0:00:10]}  Kg7 {[%clk 0:00:09]} 51. b7 {[%clk 0:00:10]}  Kh7 {[%clk 0:00:08]} 52. b8=Q {[%clk 0:00:09]}  Kg7 {[%clk 0:00:09]} 53. Qc7+ {[%clk 0:00:10]}  Kh8 {[%clk 0:00:09]} 54. Qgd8# {[%clk 0:00:10]} 1-0


[Site "https://www.chess.com"]

[Event "Titled Tuesday Blitz April 26 Late 2022"]
[White "Martinez Reyes, Pedro Ramon"]
[Black "Keymer, Vincent"]
[WhiteFideId "3901807"]
[BlackFideId "12940690"]
[WhiteElo "2410"]
[BlackElo "2557"]
[Result "0-1"]
[Round "03"]
[TimeControl "180+1"]
[Date "2022.04.26"]
[WhiteClock "0:00:32"]
[BlackClock "0:01:12"]

1. f4 {[%clk 0:03:00]}  d5 {[%clk 0:02:59]} 2. Nf3 {[%clk 0:02:59]}  Nf6 {[%clk 0:02:59]} 3. e3 {[%clk 0:02:59]}  g6 {[%clk 0:02:58]} 4. b3 {[%clk 0:02:59]}  Bg7 {[%clk 0:02:58]} 5. Bb2 {[%clk 0:03:00]}  O-O {[%clk 0:02:59]} 6. Be2 {[%clk 0:02:58]}  c5 {[%clk 0:02:57]} 7. O-O {[%clk 0:02:57]}  b6 {[%clk 0:02:58]} 8. Ne5 {[%clk 0:02:52]}  Bb7 {[%clk 0:02:57]} 9. Bf3 {[%clk 0:02:49]}  e6 {[%clk 0:02:54]} 10. a4 {[%clk 0:02:33]}  Nc6 {[%clk 0:02:49]} 11. Qe2 {[%clk 0:02:23]}  Rc8 {[%clk 0:02:41]} 12. d3 {[%clk 0:02:18]}  Re8 {[%clk 0:01:55]} 13. Nd2 {[%clk 0:02:15]}  Qc7 {[%clk 0:01:37]} 14. Rab1 {[%clk 0:02:06]}  Nd7 {[%clk 0:01:29]} 15. Nxc6 {[%clk 0:01:45]}  Bxc6 {[%clk 0:01:30]} 16. Bxg7 {[%clk 0:01:45]}  Kxg7 {[%clk 0:01:31]} 17. h4 {[%clk 0:01:26]}  f5 {[%clk 0:01:25]} 18. d4 {[%clk 0:01:17]}  cxd4 {[%clk 0:01:22]} 19. exd4 {[%clk 0:01:17]}  Qxf4 {[%clk 0:01:21]} 20. c3 {[%clk 0:01:05]}  Qxh4 {[%clk 0:01:19]} 21. Qa6 {[%clk 0:01:00]}  Rc7 {[%clk 0:01:17]} 22. Rbe1 {[%clk 0:01:01]}  e5 {[%clk 0:01:17]} 23. dxe5 {[%clk 0:00:47]}  Nxe5 {[%clk 0:01:18]} 24. Be2 {[%clk 0:00:38]}  d4 {[%clk 0:01:14]} 25. Nf3 {[%clk 0:00:32]}  Bxf3 {[%clk 0:01:12]} 0-1


[Site "https://www.chess.com"]

[Event "Titled Tuesday Blitz April 26 Late 2022"]
[White "Mayaud, Raphael"]
[Black "Mangialardo, Tiago Carvalho"]
[WhiteFideId "627151"]
[BlackFideId "2130718"]
[WhiteElo "2191"]
[BlackElo "2079"]
[Result "1-0"]
[Round "03"]
[TimeControl "180+1"]
[Date "2022.04.26"]
[WhiteClock "0:00:44"]
[BlackClock "0:00:05"]

1. d4 {[%clk 0:03:00]}  Nf6 {[%clk 0:02:58]} 2. Bg5 {[%clk 0:03:00]}  c5 {[%clk 0:02:54]} 3. d5 {[%clk 0:03:00]}  d6 {[%clk 0:02:53]} 4. Nc3 {[%clk 0:02:59]}  g6 {[%clk 0:02:44]} 5. Bxf6 {[%clk 0:02:58]}  exf6 {[%clk 0:02:45]} 6. e4 {[%clk 0:02:58]}  Bg7 {[%clk 0:02:40]} 7. Bb5+ {[%clk 0:02:58]}  Nd7 {[%clk 0:02:38]} 8. a4 {[%clk 0:02:58]}  O-O {[%clk 0:02:37]} 9. Nge2 {[%clk 0:02:56]}  Ne5 {[%clk 0:02:31]} 10. Ng3 {[%clk 0:02:41]}  h5 {[%clk 0:02:22]} 11. f4 {[%clk 0:02:34]}  Ng4 {[%clk 0:02:06]} 12. Qf3 {[%clk 0:02:34]}  h4 {[%clk 0:02:01]} 13. Nf1 {[%clk 0:02:34]}  f5 {[%clk 0:01:54]} 14. h3 {[%clk 0:02:14]}  fxe4 {[%clk 0:01:50]} 15. Nxe4 {[%clk 0:02:14]}  Bxb2 {[%clk 0:01:16]} 16. Rb1 {[%clk 0:02:13]}  Nf6 {[%clk 0:00:38]} 17. Rxb2 {[%clk 0:02:06]}  Nxe4 {[%clk 0:00:39]} 18. Qxe4 {[%clk 0:01:40]}  a6 {[%clk 0:00:36]} 19. Ne3 {[%clk 0:01:25]}  axb5 {[%clk 0:00:35]} 20. O-O {[%clk 0:01:10]}  bxa4 {[%clk 0:00:22]} 21. f5 {[%clk 0:01:10]}  Re8 {[%clk 0:00:18]} 22. Qf4 {[%clk 0:01:04]}  Qf6 {[%clk 0:00:15]} 23. Rb6 {[%clk 0:01:01]}  g5 {[%clk 0:00:09]} 24. Qf3 {[%clk 0:00:58]}  Qd4 {[%clk 0:00:08]} 25. Kh2 {[%clk 0:00:59]}  Qxe3 {[%clk 0:00:06]} 26. Qh5 {[%clk 0:00:57]}  Qg3+ {[%clk 0:00:05]} 27. Kh1 {[%clk 0:00:58]}  Re1 {[%clk 0:00:03]} 28. Rxe1 {[%clk 0:00:48]}  Qxe1+ {[%clk 0:00:03]} 29. Kh2 {[%clk 0:00:49]}  Qg3+ {[%clk 0:00:03]} 30. Kg1 {[%clk 0:00:50]}  Bxf5 {[%clk 0:00:03]} 31. Rxb7 {[%clk 0:00:48]}  Bg6 {[%clk 0:00:02]} 32. Qe2 {[%clk 0:00:44]}  a3 {[%clk 0:00:02]} 33. Rb1 {[%clk 0:00:42]}  a2 {[%clk 0:00:02]} 34. Ra1 {[%clk 0:00:43]}  Rb8 {[%clk 0:00:01]} 35. Qf1 {[%clk 0:00:44]}  Rb2 {[%clk 0:00:01]} 36. Qd1 {[%clk 0:00:44]}  Rb1 {[%clk 0:00:01]} 37. Rxb1 {[%clk 0:00:44]}  axb1=Q {[%clk 0:00:02]} 38. Qxb1 {[%clk 0:00:45]}  Qe3+ {[%clk 0:00:02]} 39. Kh1 {[%clk 0:00:44]}  Qc3 {[%clk 0:00:02]} 40. Qb8+ {[%clk 0:00:45]}  Kg7 {[%clk 0:00:02]} 41. Qxd6 {[%clk 0:00:45]}  Qxc2 {[%clk 0:00:02]} 42. Qe5+ {[%clk 0:00:46]}  f6 {[%clk 0:00:02]} 43. Qe7+ {[%clk 0:00:45]}  Bf7 {[%clk 0:00:02]} 44. d6 {[%clk 0:00:46]}  Qd1+ {[%clk 0:00:03]} 45. Kh2 {[%clk 0:00:46]}  c4 {[%clk 0:00:03]} 46. d7 {[%clk 0:00:46]}  c3 {[%clk 0:00:04]} 47. d8=Q {[%clk 0:00:46]}  c2 {[%clk 0:00:04]} 48. Qxf6+ {[%clk 0:00:45]}  Kh7 {[%clk 0:00:04]} 49. Qxf7+ {[%clk 0:00:44]}  Kh6 {[%clk 0:00:05]} 50. Qdf6# {[%clk 0:00:44]} 1-0


[Site "https://www.chess.com"]

[Event "Titled Tuesday Blitz April 26 Late 2022"]
[White "Melaugh, Shane"]
[Black "Licznerski, Lukasz"]
[WhiteFideId "2509580"]
[BlackFideId "1179250"]
[WhiteElo "1972"]
[BlackElo "2422"]
[Result "0-1"]
[Round "03"]
[TimeControl "180+1"]
[Date "2022.04.26"]
[WhiteClock "0:00:02"]
[BlackClock "0:00:03"]

1. c4 {[%clk 0:03:00]}  Nf6 {[%clk 0:02:56]} 2. Nc3 {[%clk 0:03:01]}  d5 {[%clk 0:02:55]} 3. cxd5 {[%clk 0:03:01]}  Nxd5 {[%clk 0:02:56]} 4. g3 {[%clk 0:03:01]}  g6 {[%clk 0:02:56]} 5. Bg2 {[%clk 0:03:01]}  Nb6 {[%clk 0:02:57]} 6. h4 {[%clk 0:03:01]}  h5 {[%clk 0:02:57]} 7. d3 {[%clk 0:02:59]}  Bg7 {[%clk 0:02:54]} 8. Bg5 {[%clk 0:02:53]}  Nc6 {[%clk 0:02:48]} 9. Nf3 {[%clk 0:02:49]}  O-O {[%clk 0:02:46]} 10. O-O {[%clk 0:02:45]}  f6 {[%clk 0:02:30]} 11. Qb3+ {[%clk 0:02:39]}  Kh7 {[%clk 0:02:25]} 12. Be3 {[%clk 0:02:31]}  e5 {[%clk 0:02:24]} 13. Ne4 {[%clk 0:02:27]}  Nd5 {[%clk 0:02:09]} 14. Bc5 {[%clk 0:02:26]}  Re8 {[%clk 0:02:08]} 15. Neg5+ {[%clk 0:02:19]}  Kg8 {[%clk 0:01:39]} 16. Nd2 {[%clk 0:01:50]}  fxg5 {[%clk 0:01:31]} 17. Bxd5+ {[%clk 0:01:08]}  Kh8 {[%clk 0:01:23]} 18. Bf7 {[%clk 0:01:03]}  gxh4 {[%clk 0:01:09]} 19. Ne4 {[%clk 0:00:46]}  Bf5 {[%clk 0:00:43]} 20. Bxe8 {[%clk 0:00:41]}  Qxe8 {[%clk 0:00:44]} 21. Ng5 {[%clk 0:00:41]}  hxg3 {[%clk 0:00:34]} 22. fxg3 {[%clk 0:00:39]}  Bf6 {[%clk 0:00:30]} 23. Ne4 {[%clk 0:00:30]}  Bg7 {[%clk 0:00:22]} 24. Ng5 {[%clk 0:00:28]}  Bf6 {[%clk 0:00:18]} 25. Be3 {[%clk 0:00:29]}  Nd4 {[%clk 0:00:18]} 26. Qd1 {[%clk 0:00:20]}  Kg7 {[%clk 0:00:09]} 27. Ne4 {[%clk 0:00:20]}  Bxe4 {[%clk 0:00:07]} 28. dxe4 {[%clk 0:00:21]}  Qc6 {[%clk 0:00:07]} 29. Bxd4 {[%clk 0:00:19]}  exd4 {[%clk 0:00:07]} 30. Qd3 {[%clk 0:00:20]}  Re8 {[%clk 0:00:07]} 31. Rac1 {[%clk 0:00:16]}  Qd6 {[%clk 0:00:07]} 32. Rf3 {[%clk 0:00:13]}  Bg5 {[%clk 0:00:05]} 33. Rcf1 {[%clk 0:00:12]}  Be3+ {[%clk 0:00:05]} 34. Kg2 {[%clk 0:00:11]}  Re7 {[%clk 0:00:06]} 35. Qc4 {[%clk 0:00:11]}  Qd7 {[%clk 0:00:04]} 36. e5 {[%clk 0:00:10]}  c6 {[%clk 0:00:03]} 37. e6 {[%clk 0:00:10]}  Qxe6 {[%clk 0:00:04]} 38. Qxe6 {[%clk 0:00:09]}  Rxe6 {[%clk 0:00:05]} 39. Rf7+ {[%clk 0:00:10]}  Kh6 {[%clk 0:00:05]} 40. Rxb7 {[%clk 0:00:11]}  Bg5 {[%clk 0:00:01]} 41. Kf3 {[%clk 0:00:07]}  Rf6+ {[%clk 0:00:01]} 42. Kg2 {[%clk 0:00:07]}  Re6 {[%clk 0:00:02]} 43. Kf3 {[%clk 0:00:07]}  c5 {[%clk 0:00:02]} 44. Rd1 {[%clk 0:00:06]}  Rf6+ {[%clk 0:00:03]} 45. Kg2 {[%clk 0:00:05]}  Re6 {[%clk 0:00:04]} 46. Kf1 {[%clk 0:00:06]}  Be3 {[%clk 0:00:02]} 47. b4 {[%clk 0:00:04]}  Rf6+ {[%clk 0:00:02]} 48. Kg2 {[%clk 0:00:03]}  cxb4 {[%clk 0:00:03]} 49. Rxb4 {[%clk 0:00:03]}  Rf2+ {[%clk 0:00:03]} 50. Kh3 {[%clk 0:00:02]}  Rxe2 {[%clk 0:00:04]} 51. Rb5 {[%clk 0:00:02]}  Rxa2 {[%clk 0:00:04]} 52. g4 {[%clk 0:00:03]}  hxg4+ {[%clk 0:00:03]} 53. Kxg4 {[%clk 0:00:03]}  Rg2+ {[%clk 0:00:02]} 54. Kf3 {[%clk 0:00:02]}  Rf2+ {[%clk 0:00:02]} 55. Kg4 {[%clk 0:00:01]}  Rf4+ {[%clk 0:00:03]} 56. Kg3 {[%clk 0:00:02]}  a6 {[%clk 0:00:03]} 57. Kg2 {[%clk 0:00:02]}  axb5 {[%clk 0:00:03]} 58. Kg3 {[%clk 0:00:02]}  Kg5 {[%clk 0:00:03]} 0-1


[Site "https://www.chess.com"]

[Event "Titled Tuesday Blitz April 26 Late 2022"]
[White "Mickiewicz, Piotr"]
[Black "volunteers1998"]
[WhiteFideId "1114891"]
[WhiteElo "2266"]
[BlackElo "2284"]
[Result "1/2-1/2"]
[Round "03"]
[TimeControl "180+1"]
[Date "2022.04.26"]
[WhiteClock "0:00:05"]
[BlackClock "0:00:05"]

1. Nf3 {[%clk 0:02:57]}  f5 {[%clk 0:02:59]} 2. b3 {[%clk 0:02:56]}  Nf6 {[%clk 0:02:53]} 3. Bb2 {[%clk 0:02:57]}  e6 {[%clk 0:02:51]} 4. g3 {[%clk 0:02:58]}  Be7 {[%clk 0:02:49]} 5. Bg2 {[%clk 0:02:58]}  O-O {[%clk 0:02:45]} 6. O-O {[%clk 0:02:59]}  d6 {[%clk 0:02:40]} 7. c4 {[%clk 0:03:00]}  e5 {[%clk 0:02:38]} 8. d3 {[%clk 0:03:01]}  Nc6 {[%clk 0:02:34]} 9. Nbd2 {[%clk 0:03:02]}  Be6 {[%clk 0:02:25]} 10. a3 {[%clk 0:03:03]}  Qe8 {[%clk 0:02:19]} 11. Qc2 {[%clk 0:03:04]}  Qh5 {[%clk 0:02:14]} 12. b4 {[%clk 0:03:05]}  a6 {[%clk 0:02:08]} 13. e3 {[%clk 0:02:52]}  Ng4 {[%clk 0:01:59]} 14. h3 {[%clk 0:02:42]}  Nf6 {[%clk 0:01:56]} 15. d4 {[%clk 0:02:01]}  e4 {[%clk 0:01:50]} 16. d5 {[%clk 0:02:00]}  exf3 {[%clk 0:01:46]} 17. Nxf3 {[%clk 0:01:55]}  Bd7 {[%clk 0:01:40]} 18. dxc6 {[%clk 0:01:52]}  Bxc6 {[%clk 0:01:41]} 19. Nd4 {[%clk 0:01:46]}  Bxg2 {[%clk 0:01:35]} 20. Kxg2 {[%clk 0:01:47]}  g6 {[%clk 0:01:33]} 21. Ne6 {[%clk 0:01:42]}  Rfb8 {[%clk 0:01:26]} 22. Nxc7 {[%clk 0:01:40]}  Ra7 {[%clk 0:01:23]} 23. Bxf6 {[%clk 0:01:37]}  Bxf6 {[%clk 0:01:22]} 24. Nd5 {[%clk 0:01:35]}  Bxa1 {[%clk 0:01:19]} 25. Rxa1 {[%clk 0:01:31]}  Qh6 {[%clk 0:01:18]} 26. Nb6 {[%clk 0:01:14]}  Qg7 {[%clk 0:01:16]} 27. Rd1 {[%clk 0:01:12]}  Qc7 {[%clk 0:01:11]} 28. c5 {[%clk 0:01:11]}  Rd8 {[%clk 0:01:05]} 29. Qc4+ {[%clk 0:01:06]}  Kg7 {[%clk 0:01:01]} 30. Qd4+ {[%clk 0:01:05]}  Kg8 {[%clk 0:00:59]} 31. Qf4 {[%clk 0:01:03]}  Qc6+ {[%clk 0:00:57]} 32. e4 {[%clk 0:00:46]}  Qxe4+ {[%clk 0:00:51]} 33. Qxe4 {[%clk 0:00:45]}  fxe4 {[%clk 0:00:51]} 34. Rxd6 {[%clk 0:00:45]}  Rf8 {[%clk 0:00:42]} 35. Re6 {[%clk 0:00:41]}  a5 {[%clk 0:00:40]} 36. b5 {[%clk 0:00:36]}  a4 {[%clk 0:00:38]} 37. Rxe4 {[%clk 0:00:34]}  Ra5 {[%clk 0:00:36]} 38. Rb4 {[%clk 0:00:32]}  Rf5 {[%clk 0:00:28]} 39. Nxa4 {[%clk 0:00:09]}  Ra8 {[%clk 0:00:23]} 40. f4 {[%clk 0:00:08]}  Rd5 {[%clk 0:00:20]} 41. Kf3 {[%clk 0:00:08]}  Rd3+ {[%clk 0:00:18]} 42. Ke4 {[%clk 0:00:07]}  Rxa3 {[%clk 0:00:17]} 43. Nb6 {[%clk 0:00:07]}  Re8+ {[%clk 0:00:14]} 44. Kd5 {[%clk 0:00:07]}  Rd3+ {[%clk 0:00:13]} 45. Kc4 {[%clk 0:00:07]}  Re4+ {[%clk 0:00:10]} 46. Kxd3 {[%clk 0:00:07]}  Rxb4 {[%clk 0:00:09]} 47. Nd7 {[%clk 0:00:07]}  Rxb5 {[%clk 0:00:07]} 48. Kc4 {[%clk 0:00:07]}  Rb1 {[%clk 0:00:05]} 49. g4 {[%clk 0:00:07]}  Rc1+ {[%clk 0:00:05]} 50. Kd5 {[%clk 0:00:07]}  Rd1+ {[%clk 0:00:04]} 51. Ke6 {[%clk 0:00:07]}  Re1+ {[%clk 0:00:04]} 52. Kd6 {[%clk 0:00:06]}  Kf7 {[%clk 0:00:02]} 53. Ne5+ {[%clk 0:00:02]}  Kf8 {[%clk 0:00:02]} 54. Nc4 {[%clk 0:00:02]}  Rd1+ {[%clk 0:00:01]} 55. Kc7 {[%clk 0:00:02]}  Rc1 {[%clk 0:00:02]} 56. Ne5 {[%clk 0:00:02]}  Rxc5+ {[%clk 0:00:02]} 57. Kxb7 {[%clk 0:00:03]}  Rc2 {[%clk 0:00:02]} 58. Nd7+ {[%clk 0:00:03]}  Kg7 {[%clk 0:00:02]} 59. Ne5 {[%clk 0:00:03]}  Rc3 {[%clk 0:00:02]} 60. g5 {[%clk 0:00:04]}  Rxh3 {[%clk 0:00:02]} 61. Kc6 {[%clk 0:00:05]}  Rh1 {[%clk 0:00:01]} 62. Kd5 {[%clk 0:00:04]}  Rf1 {[%clk 0:00:02]} 63. Ke4 {[%clk 0:00:04]}  Re1+ {[%clk 0:00:02]} 64. Kf3 {[%clk 0:00:04]}  Rf1+ {[%clk 0:00:03]} 65. Ke3 {[%clk 0:00:04]}  Ra1 {[%clk 0:00:03]} 66. Ng4 {[%clk 0:00:04]}  Ra3+ {[%clk 0:00:04]} 67. Ke4 {[%clk 0:00:04]}  Ra4+ {[%clk 0:00:05]} 68. Kf3 {[%clk 0:00:05]}  Ra3+ {[%clk 0:00:05]} 69. Ke4 {[%clk 0:00:04]}  Ra4+ {[%clk 0:00:05]} 70. Kf3 {[%clk 0:00:04]}  Ra3+ {[%clk 0:00:05]} 71. Ke4 {[%clk 0:00:05]} 1/2-1/2


[Site "https://www.chess.com"]